bitfinex-derivatives/quotes_ETHF0:USTF0_20241102
["timestamp","ask_amount","ask_price","bid_price","bid_amount"]
[1730537895342,2.29833139,2500.2,2500.1,1.00080021]
[1730537895532,0.70024,2500.0,2498.9,1.37424998]
[1730537895840,1.44163139,2499.1,2499.0,0.2802]
[1730537897637,1.44163139,2499.1,2498.8,0.4234]
[1730537897839,1.44163139,2499.1,2498.9,0.28022]
[1730537898639,1.72183139,2499.1,2498.9,0.28022]
[1730537898838,0.28022,2498.9,2498.8,0.4234]
[1730537899039,1.72185139,2498.9,2498.8,0.4234]
[1730537899240,1.44163139,2498.9,2498.8,0.4234]
[1730537901234,1.44163139,2498.9,2498.8,0.70363]
[1730537902940,1.44163139,2498.9,2498.8,0.4234]
[1730537905339,1.44163139,2498.9,2498.8,0.70363]
[1730537909144,1.44163139,2499.0,2498.9,0.28021]
[1730537910054,3.2078,2499.2,2499.1,0.28019]
[1730537910254,1.44163139,2499.3,2499.2,0.28018]
[1730537910547,1.44163139,2499.3,2499.2,1.16038]
[1730537911343,1.44163139,2499.3,2497.8,1.44163139]
[1730537911344,0.70046,2499.2,2497.8,1.44163139]
[1730537911544,3.2078,2498.6,2498.2,0.438]
[1730537911743,0.28026,2498.5,2498.3,0.28027]
[1730537912947,0.28026,2498.5,2498.2,0.438]
[1730537913153,1.44163139,2498.4,2498.3,0.28028]
[1730537916354,7.58637278,2498.4,2497.3,3.2078]
[1730537916557,0.28033,2497.9,2497.6,0.56063]
[1730537916759,0.4292,2497.8,2497.6,0.56063]
[1730537917257,0.28035,2497.7,2497.6,0.28028]
[1730537917459,0.70954,2497.8,2497.6,0.28028]
[1730537917650,1.44163139,2497.7,2497.6,3.48808]
[1730537917855,1.44163139,2498.0,2497.7,0.28028]
[1730537918057,1.44163139,2498.0,2497.8,0.28033]
[1730537918359,1.44163139,2498.0,2497.9,0.73198]
[1730537918660,3.4058626,2498.0,2497.9,0.73198]
[1730537919050,3.1255426,2498.0,2497.9,0.73198]
[1730537919251,0.4394,2498.3,2497.9,0.73198]
[1730537919252,3.1255426,2498.3,2497.9,0.73198]
[1730537919452,3.2078,2498.6,2498.2,0.28028]
[1730537919453,3.1255426,2498.5,2498.2,0.28028]
[1730537919661,3.1255426,2498.5,2497.9,3.6595]
[1730537919859,3.1255426,2498.3,2498.1,0.2803]
[1730537920064,3.1255426,2498.3,2498.2,0.28028]
[1730537920371,3.4058226,2498.3,2498.2,0.28028]
[1730537920670,3.1255426,2498.3,2498.2,0.28028]
[1730537921957,3.1255426,2498.3,2498.2,0.56057]
[1730537922959,3.1255426,2498.3,2497.3,3.2078]
[1730537922960,10.3365426,2498.3,2497.3,3.2078]
[1730537923164,3.4058626,2498.0,2497.8,0.28034]
[1730537923362,3.1255426,2498.0,2497.8,0.28034]
[1730537923560,7.4090626,2498.0,2497.8,0.28034]
[1730537923757,4.0032,2497.9,2497.8,0.28034]
[1730537924565,4.0032,2497.9,2497.7,3.2078]
[1730537924566,4.28353,2497.9,2497.7,0.28034]
[1730537924757,3.4058626,2498.0,2497.8,0.28034]
[1730537925157,7.4090626,2498.0,2497.8,0.28034]
[1730537925358,7.1287426,2498.0,2497.5,0.4346]
[1730537925561,3.8260426,2498.2,2498.0,0.28031]
[1730537925865,0.28031,2498.1,2497.9,0.5606]
[1730537926460,0.28031,2498.1,2497.9,0.9961]
[1730537926665,3.8260426,2498.2,2498.0,0.5606]
[1730537926864,3.5457426,2498.2,2498.1,0.28031]
[1730537927363,7.1287426,2498.2,2498.1,0.28031]
[1730537927560,3.1255426,2498.2,2498.1,0.56059]
[1730537927762,3.1255426,2498.4,2498.3,0.28028]
[1730537927971,3.1255426,2498.4,2498.3,0.56056]
[1730537933063,3.1255426,2498.4,2498.3,1.02456]
[1730537935371,4.0024,2498.4,2497.7,3.2078]
[1730537935571,6.2510852,2498.5,2497.4,0.90487696]
[1730537935572,3.1255426,2497.9,2497.8,0.56062]
[1730537935777,3.1255426,2497.9,2497.8,0.28034]
[1730537935963,3.1255426,2497.9,2497.8,0.56062]
[1730537937774,3.5898426,2498.2,2498.0,0.28031]
[1730537937969,3.8701426,2498.2,2498.0,0.56059]
[1730537938365,3.5898426,2498.2,2498.0,0.56059]
[1730537938570,3.8701426,2498.2,2498.0,0.56059]
[1730537938875,3.8701426,2498.2,2498.0,0.28028]
[1730537939175,3.8701426,2498.2,2498.1,0.28031]
[1730537939674,7.8733426,2498.2,2497.9,0.8845]
[1730537939870,3.8701426,2498.2,2498.0,0.5606]
[1730537940376,0.28031,2498.1,2498.0,0.5606]
[1730537940877,3.8701426,2498.2,2498.0,0.5606]
[1730537941478,3.8701426,2498.2,2498.1,0.28031]
[1730537941678,3.8701426,2498.2,2498.0,0.56059]
[1730537942074,3.8701426,2498.2,2498.1,0.28031]
[1730537942477,3.8701426,2498.2,2497.4,0.28038]
[1730537942478,0.28037,2497.6,2497.4,0.28038]
[1730537942673,3.5722426,2497.5,2497.4,0.28038]
[1730537942873,7.5762426,2497.5,2497.4,0.28038]
[1730537943074,7.8566126,2497.5,2497.4,0.28038]
[1730537943270,4.0048,2497.4,2496.5,2.54680298]
[1730537943478,9.9055852,2497.5,2497.0,0.28028]
[1730537943479,6.3333426,2497.1,2497.0,0.28028]
[1730537943776,3.2078,2497.1,2497.0,0.28043]
[1730537943983,3.2078,2497.1,2496.5,1.012]
[1730537944370,3.2078,2497.1,2497.0,0.28043]
[1730537945173,3.2078,2497.1,2496.5,1.012]
[1730537945378,3.2078,2497.1,2497.0,0.28043]
[1730537945576,3.1255426,2497.3,2496.6,0.28047]
[1730537945577,3.2078,2496.7,2496.6,0.28047]
[1730537945777,3.10757931,2496.7,2496.6,4.28607]
[1730537946377,2.41037931,2496.7,2496.6,4.28607]
[1730537946781,2.41037931,2496.7,2496.6,4.72337]
[1730537947281,2.41037931,2496.7,2496.6,5.73537]
[1730537947982,2.41037931,2496.7,2496.6,4.35551197]
[1730537948186,1.5086035,2496.7,2496.6,6.50465469]
[1730537948386,1.5086035,2496.7,2496.6,8.16619052]
[1730537948588,1.00763717,2496.7,2496.6,8.16619052]
[1730537949085,1.00763717,2496.7,2496.6,8.0927896]
[1730537949487,1.00763717,2496.7,2496.6,5.18657763]
[1730537949785,1.00763717,2496.7,2496.6,9.61407763]
[1730537950885,1.00763717,2496.7,2496.6,9.61409154]
[1730537951389,1.00763717,2496.7,2496.6,9.61409017]
[1730537952289,3.2078,2497.0,2496.9,0.28044]
[1730537952490,3.2078,2497.0,2496.9,3.28637282]
[1730537952791,3.2078,2497.0,2496.9,7.49156688]
[1730537953987,3.1255426,2497.3,2496.9,7.21112688]
[1730537954187,3.1255426,2497.1,2497.0,1.7534605]
[1730537954487,6.3333426,2497.1,2497.0,2.03387864]
[1730537954693,7.43273063,2497.1,2497.0,2.03387864]
[1730537955196,7.43273063,2497.1,2497.0,1.90863231]
[1730537957190,7.43273063,2497.1,2497.0,2.03388142]
[1730537957888,7.43273063,2497.1,2497.0,0.28043]
[1730537958085,7.43273063,2497.1,2497.0,1.90866399]
[1730537958385,7.43273063,2497.1,2497.0,2.03391275]
[1730537960288,4.22493063,2497.1,2497.0,2.03391275]
[1730537960489,7.43273063,2497.1,2497.0,2.03391275]
[1730537961394,7.43273063,2497.1,2497.0,0.40567876]
[1730537961592,7.43273063,2497.1,2497.0,2.0338984]
[1730537961996,7.43273063,2497.1,2497.0,2.03389909]
[1730537962296,4.22493063,2497.1,2497.0,3.28637615]
[1730537962489,7.43273063,2497.1,2497.0,3.28637615]
[1730537962890,7.43273063,2497.1,2497.0,2.03389909]
[1730537963090,4.22493063,2497.1,2497.0,2.03389909]
[1730537963292,7.43273063,2497.1,2497.0,2.03389909]
[1730537964988,4.22493063,2497.1,2497.0,2.03389909]
[1730537965592,7.43273063,2497.1,2497.0,2.03389909]
[1730537966502,4.22493063,2497.1,2497.0,2.03389909]
[1730537967302,7.43273063,2497.1,2497.0,3.28636833]
[1730537968002,7.89073063,2497.1,2497.0,3.28636833]
[1730537968496,4.68293063,2497.1,2497.0,1.90864027]
[1730537968690,4.68293063,2497.1,2497.0,3.28635665]
[1730537968895,7.89073063,2497.1,2497.0,3.28635665]
[1730537969298,4.68293063,2497.1,2497.0,3.28635665]
[1730537969996,7.89073063,2497.1,2497.0,3.28635665]
[1730537970193,4.30718803,2497.1,2497.0,3.28635665]
[1730537970800,4.30718803,2497.1,2497.0,3.71295665]
[1730537971295,5.74997003,2497.1,2497.0,3.28635534]
[1730537972507,4.30718803,2497.1,2497.0,3.28635534]
[1730537973003,1.09938803,2497.1,2497.0,3.28635534]
[1730537973298,4.30718803,2497.1,2497.0,3.28635534]
[1730537973902,1.09938803,2497.1,2497.0,3.28635534]
[1730537974104,7.43342613,2497.1,2497.0,3.20632037]
[1730537974311,14.62690134,2497.1,2496.7,0.62294562]
[1730537974600,6.3340381,2496.8,2496.7,0.28046]
[1730537974993,10.3396381,2496.8,2496.7,0.28046]
[1730537975201,10.3396381,2496.8,2496.2,1.3526]
[1730537975498,3.2078,2496.5,2496.4,0.2805]
[1730537978007,3.2078,2496.5,2496.4,0.48093224]
[1730537978999,3.1262381,2496.8,2496.7,0.28046]
[1730537979200,3.2078,2496.5,2496.3,0.62364894]
[1730537979401,3.2078,2496.5,2496.3,0.28051]
[1730537979402,3.6476,2496.4,2496.3,0.28051]
[1730537979601,7.6532,2496.4,2496.3,0.28051]
[1730537981408,3.6476,2496.4,2496.3,0.28051]
[1730537982100,3.6476,2496.4,2496.3,0.48096399]
[1730537982299,3.6476,2496.4,2496.3,0.28051]
[1730537982495,3.6476,2496.4,2496.3,1.53335093]
[1730537982908,3.6476,2496.4,2496.3,0.28051]
[1730537983202,3.6476,2496.4,2496.3,1.53334441]
[1730537984002,3.6476,2496.4,2496.3,1.73379197]
[1730537984195,3.6476,2496.4,2496.3,1.53334441]
[1730537984406,3.6476,2496.4,2496.3,2.53558038]
[1730537984899,3.6476,2496.4,2496.3,2.73602882]
[1730537985100,3.6476,2496.4,2496.3,2.53558038]
[1730537986299,3.6476,2496.4,2496.3,3.28725541]
[1730537986901,3.2078,2496.4,2496.3,4.16475541]
[1730537989604,3.2078,2496.4,2496.3,1.15801]
[1730537989809,3.2078,2496.4,2496.3,4.16467044]
[1730537992601,3.1262381,2496.5,2496.3,3.88416044]
[1730537992806,3.1262381,2496.5,2496.4,2.03438525]
[1730537993003,6.3340381,2496.5,2496.4,2.03438525]
[1730537993203,7.2134,2496.5,2496.4,0.2805]
[1730537993405,7.2134,2496.5,2496.4,2.03437976]
[1730537993610,7.2134,2496.5,2496.4,0.40577712]
[1730537993815,7.2134,2496.5,2496.4,2.03438041]
[1730537994111,7.2134,2496.5,2496.4,1.90910329]
[1730537994306,3.2078,2496.9,2496.4,7.01225308]
[1730537994609,3.2078,2496.9,2496.8,0.28045]
[1730537994813,3.2078,2496.9,2496.8,3.28710308]
[1730537995200,3.2078,2496.9,2496.8,7.29190308]
[1730537995405,3.2078,2496.9,2496.8,3.48750282]
[1730537995602,3.2078,2496.9,2496.8,3.93120282]
[1730537996815,3.2078,2496.9,2496.8,0.72415]
[1730537997013,3.2078,2496.9,2496.8,3.93057406]
[1730537997517,3.2078,2496.9,2496.8,3.73017256]
[1730537998518,3.2078,2496.9,2496.8,3.73015526]
[1730537999620,3.2078,2496.9,2496.8,3.93055572]
[1730537999918,3.2078,2496.9,2496.8,3.73015526]
[1730538001410,7.2126,2496.9,2496.8,3.48685784]
[1730538001620,3.2078,2496.9,2496.8,3.28645526]
[1730538002415,3.2078,2496.9,2496.3,0.2805]
[1730538002416,10.3388381,2496.9,2496.3,0.2805]
[1730538002615,3.1262381,2496.4,2496.3,0.2805]
[1730538002920,3.1262381,2496.4,2496.3,0.48093705]
[1730538003113,3.1262381,2496.4,2496.3,0.2805]
[1730538007014,3.1262381,2496.4,2496.2,0.4216]
[1730538007421,3.1262381,2496.4,2496.2,0.70211]
[1730538007918,3.1262381,2496.4,2496.3,0.28051]
[1730538008422,7.1318381,2496.4,2495.4,0.62392957]
[1730538008726,3.2078,2495.6,2495.5,1.67666228]
[1730538009026,3.2078,2495.6,2495.5,0.4235]
[1730538009227,7.215,2495.6,2495.5,0.4235]
[1730538009411,7.215,2495.6,2495.5,0.7041]
[1730538009816,7.215,2495.6,2495.5,0.4235]
[1730538010015,7.215,2495.6,2494.9,0.62383531]
[1730538010330,7.215,2495.6,2495.1,0.28064]
[1730538010331,6.3340381,2495.2,2495.1,0.28064]
[1730538010521,6.3340381,2495.2,2495.0,1.87737522]
[1730538010522,6.7964381,2495.5,2495.0,0.4235]
[1730538010719,3.5886381,2495.5,2495.2,0.28063]
[1730538011027,3.2078,2495.3,2495.2,0.28063]
[1730538011426,7.2158,2495.3,2495.2,0.28063]
[1730538012624,7.2158,2495.3,2495.1,0.28064]
[1730538012826,3.2078,2495.3,2495.2,0.28063]
[1730538013321,3.2078,2495.6,2495.5,0.2806]
[1730538013821,3.1262381,2495.8,2495.7,0.28058]
[1730538014026,3.1262381,2496.0,2495.9,0.28055]
[1730538016026,3.1262381,2496.0,2495.7,0.28057]
[1730538016221,3.2078,2496.2,2495.7,0.28057]
[1730538016222,3.1262381,2495.8,2495.7,0.28057]
[1730538016413,3.1262381,2495.8,2495.7,0.90711592]
[1730538017018,3.1262381,2495.8,2495.7,0.90711345]
[1730538020521,3.1262381,2495.8,2495.7,0.90711371]
[1730538021524,3.2078,2495.9,2495.7,0.90711371]
[1730538021829,3.2078,2495.9,2495.7,0.28057]
[1730538022032,3.48835,2495.9,2495.6,0.28058]
[1730538022232,3.2078,2495.9,2495.7,0.62653898]
[1730538022433,3.2078,2495.9,2495.6,0.28058]
[1730538022628,3.2078,2495.9,2495.7,0.62654047]
[1730538022835,3.2078,2495.9,2495.6,0.28058]
[1730538023033,3.2078,2495.9,2495.7,0.62654256]
[1730538023328,3.1262381,2495.8,2495.4,0.4563]
[1730538023534,6.3340381,2495.6,2495.5,0.62654162]
[1730538023729,6.3340381,2495.6,2495.5,0.90714162]
[1730538023930,6.3340381,2495.6,2495.5,0.62654162]
[1730538024126,6.3340381,2495.6,2495.5,0.2806]
[1730538024431,6.3340381,2495.6,2495.4,0.2806]
[1730538024626,6.3340381,2495.6,2495.5,0.2806]
[1730538024932,6.3340381,2495.6,2495.4,0.2806]
[1730538028230,6.6146281,2495.6,2495.2,0.28062]
[1730538028430,6.6146281,2495.6,2495.3,0.28062]
[1730538029335,0.4497,2495.5,2495.3,0.28062]
[1730538029935,0.4497,2495.5,2495.1,0.443]
[1730538030237,0.7303,2495.5,2495.2,0.28063]
[1730538030638,0.4497,2495.5,2495.2,0.28063]
[1730538031332,3.2078,2495.4,2495.2,0.28063]
[1730538031537,3.2078,2495.4,2495.3,0.28062]
[1730538032531,3.2078,2495.4,2495.2,0.28063]
[1730538032838,3.2078,2495.4,2495.3,0.28062]
[1730538034227,3.2078,2495.4,2495.1,0.443]
[1730538034539,3.2078,2495.4,2495.3,0.28062]
[1730538036438,3.2078,2495.5,2495.3,0.28062]
[1730538036937,3.2078,2495.5,2495.4,0.28061]
[1730538041542,6.3340381,2495.6,2495.5,0.2806]
[1730538043729,3.2078,2495.6,2495.5,0.2806]
[1730538044231,3.2078,2495.6,2495.5,0.90721084]
[1730538044933,3.2078,2495.6,2495.5,0.62661084]
[1730538046130,3.2078,2495.6,2495.5,0.62662062]
[1730538046440,3.2078,2495.6,2495.5,0.6266205]
[1730538047543,0.28059,2495.7,2495.5,0.6266205]
[1730538047845,0.28059,2495.7,2495.6,0.62662146]
[1730538048141,3.48839,2495.7,2495.6,0.62662146]
[1730538048541,4.93206706,2495.7,2495.6,0.62662146]
[1730538048936,4.65147706,2495.7,2495.6,0.62662146]
[1730538049345,4.93205706,2495.7,2495.5,0.2806]
[1730538049845,4.93205706,2495.7,2495.6,0.62661966]
[1730538050042,4.65147706,2495.7,2495.6,0.62661966]
[1730538050242,3.2078,2495.7,2495.6,2.03511259]
[1730538050543,4.65147706,2495.7,2495.6,2.03511259]
[1730538051441,4.65147706,2495.7,2495.6,3.28829315]
[1730538051846,1.44367706,2495.7,2495.6,3.28829315]
[1730538052343,1.44367706,2495.7,2495.6,3.48880018]
[1730538055547,1.44367706,2495.7,2495.6,3.20821018]
[1730538056553,1.44367706,2495.7,2495.6,2.88230155]
[1730538056850,1.44367706,2495.7,2495.6,3.20812693]
[1730538057452,1.44367706,2495.7,2495.6,0.32582538]
[1730538057758,1.44367706,2495.7,2495.6,3.20812572]
[1730538058447,1.72425706,2495.7,2495.6,3.20812572]
[1730538058751,3.04845706,2495.7,2495.6,1.75444373]
[1730538060252,3.04845706,2495.7,2495.5,0.28059]
[1730538060448,1.72426706,2495.6,2495.4,0.2806]
[1730538060649,4.65147706,2495.5,2495.4,0.2806]
[1730538060952,4.65147706,2495.5,2495.4,3.28857527]
[1730538061552,4.65147706,2495.5,2495.4,3.00797527]
[1730538062650,4.93207706,2495.5,2495.4,3.007984]
[1730538063055,4.65147706,2495.5,2495.4,3.007984]
[1730538063650,4.93207706,2495.5,2495.4,3.007984]
[1730538064052,6.37575412,2495.5,2495.4,3.007984]
[1730538064345,6.37575412,2495.5,2495.4,1.75465717]
[1730538064346,4.65147706,2495.5,2495.4,1.75465717]
[1730538064547,6.37575412,2495.5,2495.4,1.75465717]
[1730538064759,4.93207706,2495.5,2495.4,1.75465717]
[1730538065351,6.37575412,2495.5,2495.4,1.75465717]
[1730538065552,4.65147706,2495.5,2495.4,0.1253323]
[1730538065749,4.93207706,2495.5,2495.4,0.1253323]
[1730538065955,6.37575412,2495.5,2495.4,0.1253323]
[1730538066169,4.93207706,2495.5,2495.4,0.1253323]
[1730538066371,6.37575412,2495.5,2495.4,0.1253323]
[1730538067758,0.28062,2495.3,2495.1,1.33157547]
[1730538067965,1.44367706,2495.2,2495.1,1.33168839]
[1730538068168,1.44367706,2495.2,2495.1,1.05104839]
[1730538068370,1.44367706,2495.2,2495.1,1.33168839]
[1730538068570,1.44367706,2495.2,2495.1,1.05104839]
[1730538068772,1.44367706,2495.2,2495.1,1.33168839]
[1730538069065,1.44367706,2495.2,2495.1,1.45702531]
[1730538069469,1.44367706,2495.2,2495.1,1.17638531]
[1730538069871,1.44367706,2495.2,2495.1,1.45702531]
[1730538070271,1.44367706,2495.2,2495.1,1.17638531]
[1730538070670,5.45167706,2495.2,2495.1,1.17638531]
[1730538071971,8.94010706,2495.2,2495.1,1.17638931]
[1730538072268,8.94010706,2495.2,2495.1,0.12534092]
[1730538073381,8.94010706,2495.2,2495.1,3.00826379]
[1730538073778,8.65947706,2495.2,2495.1,3.00826379]
[1730538074076,8.94010706,2495.2,2495.1,3.00826379]
[1730538074276,9.80970706,2495.2,2495.1,1.75481906]
[1730538075870,9.80970706,2495.2,2495.1,0.75206328]
[1730538076070,9.80970706,2495.2,2495.1,0.62672236]
[1730538077369,0.28065,2495.0,2494.9,0.28066]
[1730538077679,1.72432706,2495.0,2494.9,0.90749703]
[1730538077873,5.73232706,2495.0,2494.9,0.62683703]
[1730538078077,5.73232706,2495.0,2494.9,0.90750703]
[1730538078379,5.73232706,2495.0,2494.9,0.62683703]
[1730538078581,5.73232706,2495.0,2494.9,0.90750703]
[1730538079282,8.65947706,2495.0,2494.9,0.90750703]
[1730538079484,4.65147706,2495.0,2494.9,0.90750703]
[1730538079973,4.65147706,2495.0,2494.9,2.0357209]
[1730538079974,3.2078,2495.0,2494.9,2.0357209]
[1730538080573,3.2078,2495.0,2494.9,6.0437209]
[1730538080769,1.8138,2495.0,2494.9,7.29722957]
[1730538080973,1.44367706,2495.1,2494.9,7.29722957]
[1730538080974,1.44367706,2495.5,2495.0,0.70164]
[1730538081279,1.44367706,2495.5,2495.4,0.28061]
[1730538081481,1.44367706,2495.5,2495.4,3.28916957]
[1730538081682,1.44367706,2495.5,2495.4,3.28888339]
[1730538081983,1.44367706,2495.5,2495.4,3.28889287]
[1730538082178,3.92405,2496.0,2495.4,6.89012882]
[1730538082179,1.44367706,2495.8,2495.4,6.89012882]
[1730538082387,3.2078,2496.0,2495.6,1.44367706]
[1730538082388,4.65147706,2496.0,2495.6,1.44367706]
[1730538082584,4.65147706,2496.0,2495.4,1.05104839]
[1730538082585,0.28059,2495.6,2495.4,1.05104839]
[1730538082780,1.44367706,2495.5,2494.7,0.28068]
[1730538082974,1.44367706,2495.5,2494.5,1.67666308]
[1730538082975,1.44367706,2494.8,2494.5,1.67666308]
[1730538083180,1.44367706,2494.8,2494.7,0.28069]
[1730538083385,1.44367706,2494.8,2494.7,3.28911909]
[1730538083584,1.44367706,2494.8,2494.7,2.03560697]
[1730538083777,1.44367706,2494.8,2494.7,7.29798223]
[1730538084385,1.44367706,2494.8,2494.7,6.04440697]
[1730538084582,1.44367706,2494.8,2494.7,7.29795793]
[1730538084781,1.44367706,2494.8,2494.7,6.04440697]
[1730538085179,1.44367706,2494.8,2494.7,2.03560697]
[1730538086299,1.44367706,2494.8,2494.7,2.03577341]
[1730538086482,6.61725855,2495.1,2494.7,2.03577341]
[1730538086678,3.2078,2495.1,2494.8,1.7550781]
[1730538086980,3.12880855,2494.9,2494.6,0.4395]
[1730538087284,3.40947855,2494.9,2494.7,0.62684012]
[1730538087480,3.40947855,2494.9,2494.8,0.62684012]
[1730538088389,3.40947855,2494.9,2494.6,0.4395]
[1730538088691,3.40947855,2494.9,2493.5,0.28082]
[1730538088692,0.70176,2494.6,2493.5,0.28082]
[1730538088893,3.12880855,2493.9,2493.6,1.12870622]
[1730538089188,6.33660855,2493.9,2493.6,0.7208]
[1730538089389,6.33660855,2493.9,2493.6,0.44]
[1730538089593,0.28083,2493.4,2493.0,1.05104839]
[1730538089787,3.12880855,2493.1,2493.0,1.05104839]
[1730538089980,0.9138,2493.8,2493.0,1.05104839]
[1730538089981,3.12880855,2493.5,2493.0,4.33674353]
[1730538090290,3.12880855,2493.3,2493.1,1.40980353]
[1730538090486,3.12880855,2493.3,2493.2,0.4632]
[1730538090787,3.12880855,2493.3,2493.2,0.74406]
[1730538091190,3.12880855,2493.3,2493.2,0.4632]
[1730538091391,3.12880855,2493.3,2493.2,1.19736]
[1730538092886,3.12880855,2493.8,2493.2,4.9277]
[1730538093085,3.12880855,2493.8,2493.7,0.2808]
[1730538093888,3.12880855,2493.8,2493.7,1.1847]
[1730538094290,3.12880855,2494.0,2493.7,4.9143]
[1730538094590,3.12880855,2494.0,2493.9,0.28078]
[1730538094795,3.12880855,2494.2,2493.9,7.2174]
[1730538094995,3.12880855,2494.2,2494.1,0.28076]
[1730538095185,3.12880855,2494.2,2494.1,4.29036]
[1730538095786,3.12880855,2494.2,2494.1,4.74916]
[1730538096597,3.12880855,2494.2,2493.5,3.2078]
[1730538096598,7.13840855,2494.2,2493.5,3.2078]
[1730538096794,3.12880855,2493.5,2493.3,0.73654]
[1730538097304,3.12880855,2493.5,2493.3,0.4557]
[1730538097593,3.12880855,2493.5,2493.3,0.73654]
[1730538098190,3.12880855,2493.5,2493.3,0.4557]
[1730538098392,3.12880855,2493.5,2493.3,0.73654]
[1730538098994,3.12880855,2493.5,2493.3,0.4557]
[1730538099598,3.2078,2493.4,2493.3,0.4557]
[1730538101294,7.2182,2493.4,2492.6,0.70229]
[1730538101502,3.2078,2493.4,2493.2,0.28085]
[1730538102294,3.2078,2493.4,2492.8,1.3901]
[1730538102497,3.2078,2493.4,2493.1,0.28086]
[1730538102700,3.2078,2493.4,2493.1,0.28087]
[1730538103497,0.434,2493.3,2493.1,0.28087]
[1730538103802,3.12880855,2493.2,2492.9,0.28089]
[1730538104206,3.12880855,2493.0,2492.2,3.2078]
[1730538104402,3.12880855,2492.7,2492.4,0.4622]
[1730538104708,3.12880855,2492.7,2492.6,0.28092]
[1730538105301,7.14080855,2492.7,2492.4,0.28094]
[1730538105604,3.12880855,2492.5,2492.4,0.28094]
[1730538105800,0.434,2492.8,2492.4,0.28094]
[1730538105801,3.12880855,2492.7,2492.6,0.28092]
[1730538107106,6.33660855,2492.9,2492.6,4.012]
[1730538107298,4.012,2492.8,2492.7,0.62445961]
[1730538107605,7.58590855,2492.8,2492.7,0.28091]
[1730538107805,3.57470855,2492.8,2492.7,0.28091]
[1730538109502,7.58670855,2492.8,2492.4,0.28094]
[1730538109703,3.12880855,2492.5,2492.4,0.28094]
[1730538110210,3.12880855,2492.5,2492.0,0.4196]
[1730538110507,3.12880855,2492.5,2492.1,0.70246]
[1730538110715,0.4459,2492.8,2492.3,0.7024]
[1730538111005,0.4459,2492.8,2492.7,0.28091]
[1730538111200,3.57470855,2492.8,2492.7,0.28091]
[1730538111611,0.4459,2492.8,2492.7,0.28091]
[1730538111799,0.4459,2492.8,2492.7,0.90504158]
[1730538112504,3.2078,2493.1,2492.7,0.62413158]
[1730538112705,3.57560855,2493.3,2493.2,0.28086]
[1730538112907,3.12880855,2493.3,2493.2,0.28086]
[1730538113606,3.12880855,2493.3,2492.7,0.70227]
[1730538113807,3.12880855,2493.3,2492.8,4.83036542]
[1730538114007,1.026,2494.0,2493.1,3.2078]
[1730538114008,3.12880855,2493.7,2493.1,3.2078]
[1730538114215,3.59310855,2493.7,2493.6,0.28081]
[1730538114816,3.12880855,2493.7,2493.6,0.28081]
[1730538115003,0.4643,2493.9,2493.8,0.28079]
[1730538115616,6.33660855,2494.0,2493.9,0.28078]
[1730538119114,3.2078,2494.0,2493.9,0.28078]
[1730538120321,3.2078,2494.0,2493.9,0.90532501]
[1730538121116,3.2078,2494.0,2493.9,0.28078]
[1730538121318,3.2078,2494.0,2493.9,0.90538781]
[1730538121521,3.12880855,2494.2,2493.9,0.62460781]
[1730538121716,6.33660855,2494.2,2494.1,0.28076]
[1730538123020,6.33660855,2494.2,2493.6,3.2078]
[1730538123221,6.33660855,2494.2,2493.9,0.28077]
[1730538123629,6.33660855,2494.2,2493.3,0.4463]
[1730538123630,3.12880855,2494.0,2493.3,0.4463]
[1730538123815,0.4332,2493.9,2493.7,0.2808]
[1730538124132,3.12880855,2493.8,2493.4,0.62485563]
[1730538124429,3.12880855,2493.8,2493.7,0.2808]
[1730538124623,3.2078,2495.1,2493.7,3.2778]
[1730538124824,3.12880855,2495.4,2493.7,3.2778]
[1730538124825,0.4332,2495.4,2494.8,3.2078]
[1730538125022,0.4332,2495.4,2495.3,0.28062]
[1730538125624,0.4332,2495.4,2495.1,3.2078]
[1730538125625,0.4376,2495.9,2495.1,3.2078]
[1730538125820,0.8708,2495.9,2495.6,0.28058]
[1730538126027,0.8708,2495.9,2495.8,0.28056]
[1730538126222,0.4332,2495.9,2495.8,0.28056]
[1730538127726,0.4376,2496.3,2495.7,3.2078]
[1730538127928,0.4376,2496.3,2495.8,0.28056]
[1730538128128,3.2078,2496.6,2496.1,3.84941969]
[1730538128330,3.84941969,2497.5,2496.7,0.28046]
[1730538128331,0.28041,2497.2,2496.7,0.28046]
[1730538128630,3.48821,2497.3,2496.4,3.2078]
[1730538128832,3.48821,2497.3,2496.8,0.28045]
[1730538129029,3.48821,2497.3,2496.9,0.28043]
[1730538129030,3.2078,2497.3,2496.9,0.28043]
[1730538129336,3.4882,2497.3,2496.8,0.28044]
[1730538129530,3.4882,2497.3,2496.4,7.05721969]
[1730538129531,3.2078,2497.3,2496.4,7.05721969]
[1730538129727,3.2078,2497.3,2497.0,0.28042]
[1730538130329,3.2078,2497.3,2497.2,0.28041]
[1730538130729,7.2126,2497.3,2497.2,0.28041]
[1730538130934,3.2078,2497.3,2497.2,0.28041]
[1730538131236,3.2078,2497.3,2496.7,8.08221969]
[1730538131434,3.2078,2497.3,2497.2,0.28041]
[1730538132825,3.664,2497.7,2497.2,4.0048]
[1730538133028,3.664,2497.7,2497.5,0.28037]
[1730538134237,3.664,2497.7,2497.6,0.28036]
[1730538134528,3.2078,2497.7,2497.1,3.2078]
[1730538134937,3.2078,2497.7,2497.6,0.28036]
[1730538136331,3.2078,2497.7,2497.5,0.28037]
[1730538136532,3.2078,2497.7,2497.3,1.025]
[1730538136833,3.2078,2497.7,2497.6,0.28036]
[1730538137334,3.2078,2497.7,2497.5,0.28037]
[1730538137531,0.4465,2497.8,2497.4,3.2078]
[1730538137832,0.9058,2498.2,2497.7,0.28035]
[1730538138033,0.9058,2498.2,2497.4,3.2078]
[1730538138230,0.9058,2498.2,2497.5,3.84941969]
[1730538138438,0.9058,2498.2,2497.7,0.28035]
[1730538138730,0.4619,2498.2,2497.7,3.2078]
[1730538138928,0.4619,2498.2,2497.9,0.28032]
[1730538140131,0.4619,2498.2,2498.0,0.28031]
[1730538140326,0.4288,2498.4,2498.0,0.28031]
[1730538140839,0.4288,2498.4,2497.7,4.2078]
[1730538140840,3.84941969,2498.1,2497.7,0.3038]
[1730538141037,0.28037,2497.6,2497.1,3.48821]
[1730538141243,7.05721969,2497.8,2497.2,0.2804]
[1730538141244,0.28036,2497.7,2497.2,0.2804]